bitfinex/quotes_SOLUSD_20230110
["timestamp","ask_amount","ask_price","bid_price","bid_amount"]
[1673343182306,24.28,16.2,16.183,21.03]
[1673343182725,24.28,16.2,16.184,20.0]
[1673343182940,21.92,16.199,16.185,21.83]
[1673343183144,21.92,16.199,16.179,132.8003]
[1673343183358,17.0,16.198,16.179,109.8903]
[1673343183583,20.0,16.196,16.179,109.8903]
[1673343183790,64.29,16.195,16.179,109.8903]
[1673343184013,20.0,16.194,16.179,109.8903]
[1673343184213,47.29,16.193,16.179,109.8903]
[1673343184410,0.96,16.192,16.179,109.8903]
[1673343184742,47.29,16.193,16.179,109.8903]
[1673343184952,46.33,16.193,16.179,109.8903]
[1673343185160,20.0,16.194,16.179,109.8903]
[1673343185687,1.92,16.193,16.179,109.8903]
[1673343186205,1.92,16.193,16.175,22.91]
[1673343186425,24.28,16.19,16.176,20.0]
[1673343186624,48.26,16.189,16.176,20.0]
[1673343186828,17.0,16.188,16.176,20.0]
[1673343187037,0.96,16.187,16.174,20.0]
[1673343187365,47.31,16.186,16.167,117.0606]
[1673343187561,24.17,16.18,16.168,20.0]
[1673343187774,0.96,16.179,16.168,20.0]
[1673343187983,1.92,16.179,16.167,109.8296]
[1673343188519,0.96,16.179,16.167,109.8296]
[1673343188736,24.17,16.18,16.168,20.0]
[1673343188925,24.17,16.18,16.167,109.8296]
[1673343189134,1.92,16.179,16.167,109.8296]
[1673343189355,18.92,16.179,16.167,109.8296]
[1673343189778,24.17,16.18,16.168,20.0]
[1673343189990,46.36,16.184,16.168,20.0]
[1673343190189,21.92,16.183,16.168,20.0]
[1673343190605,21.92,16.183,16.169,17.0]
[1673343192199,21.92,16.183,16.167,109.8296]
[1673343192388,17.0,16.182,16.168,20.0]
[1673343192598,1.92,16.181,16.168,20.0]
[1673343193896,24.14,16.19,16.169,20.0]
[1673343194097,24.14,16.19,16.171,20.0]
[1673343194309,24.14,16.19,16.17,20.0]
[1673343194629,24.14,16.19,16.168,20.0]
[1673343194630,20.0,16.187,16.168,20.0]
[1673343194829,20.0,16.185,16.151,20.0]
[1673343195149,20.0,16.179,16.162,111.0737]
[1673343195350,24.14,16.18,16.162,111.0737]
[1673343195761,0.96,16.179,16.163,20.0]
[1673343195977,1.92,16.179,16.163,20.0]
[1673343196405,1.92,16.179,16.164,17.0]
[1673343196630,1.92,16.179,16.165,20.0]
[1673343196821,1.92,16.179,16.166,17.0]
[1673343197152,1.92,16.179,16.167,20.0]
[1673343198398,20.0,16.185,16.168,17.0]
[1673343198728,18.92,16.184,16.169,20.0]
[1673343199235,18.92,16.184,16.166,20.0]
[1673343199444,20.0,16.183,16.166,20.0]
[1673343199657,18.92,16.182,16.165,20.0]
[1673343199862,20.0,16.181,16.165,20.0]
[1673343200072,43.2,16.18,16.165,20.0]
[1673343200287,89.57,16.18,16.163,20.0]
[1673343200516,20.0,16.179,16.159,20.0]
[1673343200727,64.33,16.178,16.159,20.0]
[1673343200916,20.96,16.177,16.159,20.0]
[1673343201128,17.96,16.176,16.16,1.885]
[1673343201340,20.96,16.175,16.16,1.885]
[1673343201551,17.96,16.174,16.16,1.885]
[1673343201862,0.96,16.173,16.16,1.885]
[1673343202097,46.37,16.178,16.16,1.885]
[1673343202299,70.44,16.18,16.16,1.885]
[1673343202511,20.0,16.179,16.16,21.885]
[1673343202714,24.07,16.18,16.162,20.0]
[1673343202937,20.0,16.185,16.163,10.81]
[1673343203129,20.0,16.185,16.164,38.92]
[1673343203469,20.0,16.185,16.165,12.58]
[1673343203654,20.0,16.185,16.167,20.0]
[1673343203988,20.0,16.186,16.169,20.0]
[1673343204195,20.0,16.186,16.169,40.0]
[1673343204402,20.0,16.186,16.17,33.17]
[1673343204607,46.35,16.188,16.17,17.0]
[1673343204813,46.35,16.188,16.171,40.0]
[1673343205033,20.0,16.189,16.172,32.94]
[1673343205238,20.0,16.189,16.173,20.0]
[1673343205683,20.0,16.189,16.174,34.57]
[1673343206334,20.0,16.189,16.168,114.0324]
[1673343206525,20.0,16.185,16.169,20.0]
[1673343206847,20.0,16.183,16.168,114.0324]
[1673343207061,46.36,16.184,16.168,114.0324]
[1673343207388,1.92,16.183,16.168,114.0324]
[1673343207976,1.92,16.183,16.169,29.89]
[1673343209781,46.35,16.188,16.17,52.03656886]
[1673343209972,20.0,16.189,16.171,6.919]
[1673343210181,20.0,16.189,16.172,37.96]
[1673343210388,20.0,16.189,16.173,8.095]
[1673343210623,20.0,16.189,16.174,20.0]
[1673343210825,20.0,16.189,16.175,26.604]
[1673343211150,20.0,16.189,16.176,20.0]
[1673343211767,20.0,16.189,16.176,31.75]
[1673343212519,20.0,16.189,16.155,113.4944]
[1673343212520,20.0,16.189,16.156,20.0]
[1673343212831,20.0,16.187,16.162,32.03656886]
[1673343213019,20.0,16.185,16.163,12.61]
[1673343213223,65.28,16.184,16.163,12.61]
[1673343213432,20.0,16.183,16.163,12.61]
[1673343213654,20.0,16.181,16.163,12.61]
[1673343213861,1.92,16.18,16.163,12.61]
[1673343214281,89.57,16.18,16.161,109.9001]
[1673343214601,20.0,16.179,16.162,13.11]
[1673343214794,65.29,16.178,16.162,13.11]
[1673343215002,18.92,16.178,16.162,13.11]
[1673343215355,1.92,16.178,16.163,17.0]
[1673343215645,20.0,16.179,16.163,17.0]
[1673343215855,24.28,16.18,16.165,20.0]
[1673343216051,24.28,16.18,16.166,17.0]
[1673343216261,24.28,16.18,16.165,20.0]
[1673343216471,20.0,16.179,16.165,20.0]
[1673343216698,20.0,16.179,16.162,35.07]
[1673343217222,18.92,16.178,16.162,35.07]
[1673343217953,1.92,16.178,16.162,35.07]
[1673343218368,18.92,16.178,16.162,47.10656886]
[1673343218576,20.0,16.177,16.162,20.0]
[1673343218783,18.92,16.176,16.162,20.0]
[1673343219220,24.2,16.17,16.152,12.67]
[1673343219420,46.4,16.169,16.152,113.9223]
[1673343219630,20.0,16.174,16.154,32.03656886]
[1673343219849,48.31,16.173,16.156,20.0]
[1673343220154,24.39,16.18,16.159,14.5]
[1673343220480,46.36,16.182,16.161,20.0]
[1673343220690,20.0,16.184,16.163,20.0]
[1673343220903,66.36,16.184,16.165,20.0]
[1673343221220,66.36,16.184,16.166,20.22]
[1673343221442,66.36,16.184,16.167,20.0]
[1673343221626,46.36,16.182,16.164,41.16]
[1673343221832,37.96,16.181,16.164,41.16]
[1673343222047,0.96,16.18,16.164,41.16]
[1673343222681,20.0,16.179,16.164,20.0]
[1673343222891,18.92,16.178,16.163,38.04]
[1673343223326,1.92,16.178,16.164,32.03656886]
[1673343223522,1.92,16.178,16.165,20.0]
[1673343223732,1.92,16.178,16.165,37.07]
[1673343224158,1.92,16.178,16.165,20.0]
[1673343227754,46.36,16.183,16.166,12.03656886]
[1673343227958,46.36,16.184,16.167,20.0]
[1673343228383,46.36,16.184,16.169,20.0]
[1673343228704,46.36,16.184,16.169,26.275]
[1673343228898,46.36,16.184,16.169,20.0]
[1673343229099,18.92,16.183,16.168,12.03656886]
[1673343229421,18.92,16.183,16.17,20.0]
[1673343229638,66.34,16.189,16.17,20.0]
[1673343229848,20.0,16.189,16.172,20.0]
[1673343230044,20.0,16.189,16.171,12.03656886]
[1673343230255,46.35,16.187,16.17,20.0]
[1673343230483,20.0,16.186,16.17,20.0]
[1673343230691,20.0,16.186,16.169,32.03656886]
[1673343231110,20.0,16.186,16.168,8.246]
[1673343231111,18.92,16.185,16.168,8.246]
[1673343231327,65.27,16.185,16.169,20.0]
[1673343231529,65.27,16.185,16.168,21.53956886]
[1673343231746,65.27,16.185,16.169,20.0]
[1673343232067,65.27,16.185,16.169,32.03656886]
[1673343232383,18.92,16.185,16.169,32.03656886]
[1673343233214,65.27,16.185,16.169,32.03656886]
[1673343233428,20.0,16.184,16.169,32.03656886]
[1673343233621,18.92,16.183,16.169,32.03656886]
[1673343234798,1.92,16.183,16.169,32.03656886]
[1673343235112,17.0,16.182,16.169,32.03656886]
[1673343235304,1.92,16.181,16.169,32.03656886]
[1673343235515,0.96,16.181,16.169,32.03656886]
[1673343235856,0.96,16.18,16.169,32.03656886]
[1673343236039,0.96,16.179,16.169,32.03656886]
[1673343236249,0.96,16.178,16.169,32.03656886]
[1673343236453,0.96,16.178,16.169,20.0]
[1673343236676,0.96,16.177,16.168,20.0]
[1673343236887,0.96,16.176,16.166,20.0]
[1673343237635,0.96,16.176,16.167,20.0]
[1673343237951,0.96,16.176,16.166,40.0]
[1673343238475,72.5309,16.2,16.168,22.74004395]
[1673343238686,72.5309,16.2,16.171,20.0]
[1673343238687,20.0,16.199,16.171,20.0]
[1673343238884,20.0,16.199,16.173,3.0744512]
[1673343239218,46.32,16.196,16.175,3.0744512]
[1673343239409,46.32,16.196,16.175,40.0744512]
[1673343239616,46.32,16.196,16.177,20.0]
[1673343239823,7.81941291,16.196,16.179,20.0]
[1673343240045,7.81941291,16.196,16.18,35.2544512]
[1673343240263,46.33,16.195,16.18,3.0744512]
[1673343240573,46.33,16.195,16.179,3.0744512]
[1673343240768,20.0,16.198,16.18,20.0]
[1673343241106,46.32,16.197,16.181,17.3144512]
[1673343241316,20.0,16.205,16.183,20.0]
[1673343241518,20.0,16.205,16.184,38.6544512]
[1673343241834,20.0,16.205,16.186,3.0744512]
[1673343242048,46.29,16.206,16.188,23.0744512]
[1673343242262,46.29,16.206,16.19,3.0744512]
[1673343242458,46.29,16.208,16.19,20.0744512]
[1673343242666,46.29,16.208,16.192,3.0744512]
[1673343243506,46.29,16.208,16.192,20.0744512]
[1673343244453,46.29,16.208,16.192,3.0744512]
[1673343244976,20.0,16.207,16.19,3.0744512]
[1673343245314,20.0,16.205,16.19,3.0744512]
[1673343245621,20.0,16.203,16.188,3.0744512]
[1673343245940,0.96,16.202,16.188,3.0744512]
[1673343246347,24.33,16.2,16.188,3.0744512]
[1673343246555,20.0,16.198,16.188,3.0744512]
[1673343246772,47.28,16.197,16.188,3.0744512]
[1673343247090,48.24,16.197,16.187,3.0744512]
[1673343247290,1.92,16.197,16.187,3.0744512]
[1673343249180,21.92,16.197,16.187,3.0744512]
[1673343249389,68.24,16.197,16.186,20.0]
[1673343249609,48.24,16.197,16.187,1.66599753]
[1673343251938,17.0,16.196,16.176,20.0]
[1673343252246,24.33,16.19,16.176,20.0]
[1673343252457,17.0,16.189,16.175,119.5867]
[1673343252675,0.96,16.188,16.176,20.0]
[1673343253222,0.96,16.189,16.176,20.0]
[1673343253522,0.96,16.189,16.176,32.03656886]
[1673343253738,0.96,16.188,16.176,32.03656886]
[1673343254373,0.96,16.188,16.175,119.5867]
[1673343254677,20.96,16.188,16.176,20.0]
[1673343254873,17.96,16.187,16.176,20.0]
[1673343255084,0.96,16.186,16.177,20.0]
[1673343255308,0.96,16.185,16.176,20.0]
[1673343255507,0.96,16.184,16.176,20.0]
[1673343255716,0.96,16.183,16.176,20.0]
[1673343255933,0.96,16.184,16.176,20.0]
[1673343256154,0.96,16.185,16.176,20.0]
[1673343256682,0.96,16.185,16.177,20.0]
[1673343257097,0.96,16.184,16.177,20.0]
[1673343257301,0.96,16.183,16.177,20.0]
[1673343257724,0.96,16.183,16.176,40.0]
[1673343257926,0.96,16.183,16.177,20.0]
[1673343258137,0.96,16.184,16.177,20.0]
[1673343258349,20.0,16.189,16.177,20.0]
[1673343258558,1.92,16.188,16.177,20.0]
[1673343258885,20.0,16.189,16.176,20.0]
[1673343259919,17.0,16.188,16.176,20.0]
[1673343260374,1.92,16.187,16.176,20.0]
[1673343262038,21.92,16.187,16.176,20.0]
[1673343262250,17.0,16.186,16.176,20.0]
[1673343262457,1.92,16.185,16.176,20.0]
[1673343264562,20.0,16.189,16.176,20.0]
[1673343264774,26.05,16.19,16.177,20.0]
[1673343265082,46.33,16.194,16.178,20.0]
[1673343265280,46.32,16.197,16.178,20.0]
[1673343265492,46.32,16.197,16.179,13.89756886]
[1673343265907,46.32,16.197,16.18,12.03656886]
[1673343266328,46.32,16.197,16.181,37.0]
[1673343266539,20.0,16.198,16.181,37.0]
[1673343266749,20.0,16.198,16.181,53.71656886]
[1673343266959,20.0,16.198,16.181,29.03656886]
[1673343267165,46.31,16.199,16.182,20.0]
[1673343267382,26.28,16.2,16.184,1.94929558]
[1673343267602,20.0,16.199,16.186,1.94929558]
[1673343268161,20.0,16.199,16.186,33.98586444]
[1673343268769,1.92,16.198,16.186,33.98586444]
[1673343272869,1.92,16.198,16.187,4.661]
[1673343273077,1.92,16.198,16.188,1.94929558]
[1673343273299,1.92,16.198,16.188,21.94929558]
[1673343273709,26.0,16.2,16.188,21.94929558]
[1673343273919,20.0,16.199,16.188,21.94929558]
[1673343274140,20.0,16.199,16.188,1.94929558]
[1673343274353,20.0,16.199,16.186,1.94929558]
[1673343274554,66.31,16.199,16.186,1.94929558]
[1673343274764,0.96,16.198,16.184,20.0]
[1673343274975,20.0,16.197,16.184,20.0]
[1673343275201,18.92,16.196,16.184,20.0]
[1673343276671,18.92,16.196,16.185,20.0]
[1673343276880,18.92,16.196,16.184,20.0]
[1673343277091,20.0,16.199,16.184,20.0]
[1673343277287,20.0,16.199,16.184,40.73756886]
[1673343279716,18.92,16.198,16.184,32.03656886]
[1673343280231,20.0,16.199,16.185,10.48]
[1673343280429,20.0,16.199,16.186,20.0]
[1673343280641,20.0,16.199,16.186,32.03656886]
[1673343281406,17.96,16.198,16.186,20.0]
[1673343281589,20.96,16.197,16.183,110.4458]
[1673343281799,20.0,16.195,16.183,110.4458]
[1673343282013,65.25,16.194,16.183,110.4458]
[1673343282338,20.0,16.193,16.183,110.4458]
[1673343282543,1.92,16.192,16.183,110.4458]
[1673343283586,25.75,16.19,16.17,25.87]
[1673343283799,1.92,16.189,16.172,20.0]
[1673343284012,1.92,16.189,16.176,12.03656886]
[1673343284225,1.92,16.189,16.177,23.247]
[1673343284432,1.92,16.189,16.178,20.0]
[1673343284644,1.92,16.189,16.179,20.0]
[1673343284849,1.92,16.189,16.18,20.0]
[1673343285086,1.92,16.189,16.18,32.03656886]
[1673343286133,63.33,16.194,16.18,32.03656886]
[1673343286331,25.95,16.2,16.181,49.03656886]
[1673343286547,25.95,16.2,16.182,20.0]
[1673343286867,25.95,16.2,16.184,20.0]
[1673343287065,25.95,16.2,16.185,21.909]
[1673343287281,25.95,16.2,16.185,33.94556886]
[1673343287478,25.95,16.2,16.186,12.03656886]
[1673343287688,25.95,16.2,16.187,20.0]
[1673343288114,25.95,16.2,16.188,12.03656886]
[1673343288862,25.95,16.2,16.189,20.0]
[1673343289266,129.85,16.2,16.182,125.48416886]
[1673343289484,46.31,16.199,16.175,8.814]
[1673343289687,20.0,16.198,16.175,8.814]
[1673343290005,46.32,16.197,16.178,12.03656886]
[1673343290224,37.96,16.196,16.178,12.03656886]
[1673343290447,47.29,16.195,16.178,12.03656886]
[1673343290637,20.0,16.193,16.178,12.03656886]
[1673343290860,18.92,16.192,16.178,12.03656886]
[1673343291689,18.92,16.192,16.176,20.0]
[1673343293598,18.92,16.192,16.177,12.03656886]
[1673343295464,0.96,16.192,16.177,12.03656886]
[1673343295676,25.94,16.19,16.177,12.03656886]
[1673343296224,25.94,16.19,16.171,20.0]
[1673343296538,25.94,16.19,16.176,12.03656886]
[1673343296746,25.94,16.19,16.177,20.0]
[1673343296955,18.92,16.189,16.177,20.0]
[1673343297269,1.92,16.189,16.177,20.0]
[1673343297479,1.92,16.189,16.177,32.03656886]
[1673343300229,18.92,16.189,16.177,32.03656886]
[1673343300418,20.0,16.188,16.177,32.03656886]
[1673343300738,1.92,16.187,16.177,32.03656886]
[1673343301474,1.92,16.187,16.177,20.0]
[1673343301673,1.92,16.187,16.176,20.0]
[1673343303996,18.92,16.187,16.176,20.0]
[1673343307347,17.0,16.186,16.176,20.0]
[1673343307557,1.92,16.185,16.176,20.0]
[1673343307889,1.92,16.184,16.176,20.0]
[1673343308207,1.92,16.187,16.176,20.0]
[1673343308407,0.96,16.183,16.176,20.0]
[1673343308622,20.0,16.189,16.176,20.0]
[1673343309784,0.96,16.188,16.176,20.0]
[1673343310006,18.92,16.188,16.176,20.0]
[1673343310949,20.0,16.189,16.176,20.0]
[1673343311472,25.75,16.19,16.177,20.0]
[1673343311688,25.75,16.19,16.178,20.0]
[1673343312319,18.92,16.189,16.178,20.0]
[1673343312504,20.0,16.188,16.178,20.0]
[1673343312713,18.92,16.187,16.176,20.0]
[1673343313257,20.0,16.188,16.176,20.0]
[1673343313469,25.82,16.19,16.177,20.0]
[1673343313786,25.82,16.19,16.178,20.0]
[1673343313997,20.0,16.189,16.178,20.0]
[1673343314184,20.0,16.189,16.177,20.0]
[1673343314393,20.0,16.189,16.176,20.0]
[1673343314624,18.92,16.188,16.176,20.0]
[1673343319449,20.0,16.187,16.176,20.0]
[1673343319765,18.92,16.186,16.176,20.0]
[1673343323456,18.92,16.186,16.177,20.0]
[1673343324084,18.92,16.186,16.176,40.0]
[1673343324507,1.92,16.186,16.176,40.0]
[1673343324825,1.92,16.186,16.177,20.0]
[1673343325026,1.92,16.186,16.178,20.0]
[1673343325238,1.92,16.186,16.177,20.0]
[1673343325449,1.92,16.186,16.178,20.0]
[1673343326593,0.96,16.186,16.178,20.0]
[1673343326806,46.33,16.193,16.178,20.0]
[1673343327013,46.33,16.194,16.179,20.0]
[1673343327233,20.0,16.193,16.179,20.0]
[1673343328279,18.92,16.192,16.179,20.0]
[1673343330295,18.92,16.192,16.178,20.0]
[1673343333105,65.25,16.192,16.178,20.0]
[1673343333332,20.0,16.191,16.178,20.0]
[1673343333746,20.0,16.193,16.178,20.0]
[1673343335122,1.92,16.192,16.178,20.0]
[1673343335334,18.92,16.192,16.177,20.0]
[1673343335550,25.89,16.19,16.177,20.0]
[1673343335761,17.96,16.189,16.177,20.0]
[1673343336086,20.0,16.188,16.177,20.0]
[1673343336296,17.96,16.187,16.176,20.0]
[1673343336604,18.92,16.187,16.176,20.0]
[1673343337132,1.92,16.187,16.176,20.0]
[1673343338067,25.89,16.19,16.176,20.0]
[1673343338809,25.89,16.19,16.177,20.0]
[1673343339446,18.92,16.189,16.177,20.0]
[1673343339759,18.92,16.189,16.176,40.0]
[1673343340181,18.92,16.189,16.177,20.0]
[1673343340392,25.89,16.19,16.177,20.0]
[1673343340707,46.33,16.194,16.177,20.0]
[1673343341741,18.92,16.192,16.177,20.0]
[1673343343630,18.92,16.192,16.176,40.0]
[1673343344598,46.33,16.194,16.177,20.0]
[1673343344905,46.33,16.194,16.178,20.0]
[1673343346064,20.0,16.193,16.178,20.0]
[1673343346277,65.25,16.192,16.178,20.0]
[1673343346469,18.92,16.192,16.178,20.0]
[1673343347635,65.25,16.192,16.178,11.36573413]
[1673343347848,46.32,16.198,16.179,43.073]
[1673343348169,25.92,16.2,16.18,59.00483562]
[1673343348352,25.92,16.2,16.182,21.99017493]
[1673343348696,25.92,16.2,16.184,2.43887595]
[1673343348895,25.92,16.2,16.186,20.0]
[1673343349110,25.92,16.2,16.187,22.43887595]
[1673343349423,46.3,16.203,16.187,33.80461008]
[1673343349630,20.0,16.205,16.188,20.0]
[1673343349631,66.3,16.204,16.188,20.0]
[1673343349844,66.3,16.204,16.189,2.77321368]
[1673343350059,66.3,16.204,16.19,108.1335]
[1673343350255,66.3,16.204,16.191,2.88744225]
[1673343350673,20.0,16.202,16.191,2.88744225]
[1673343350880,26.01,16.2,16.191,2.88744225]
[1673343351093,17.0,16.199,16.191,2.88744225]
[1673343351405,48.24,16.198,16.191,2.88744225]
[1673343351627,20.0,16.196,16.183,128.1335]
[1673343351837,18.92,16.195,16.183,128.1335]
[1673343352262,18.92,16.195,16.183,108.1335]
[1673343352559,46.33,16.194,16.183,108.1335]
[1673343352764,18.92,16.193,16.183,108.1335]
[1673343353517,1.92,16.193,16.183,108.1335]
[1673343354578,21.92,16.193,16.183,108.1335]
[1673343354784,17.0,16.192,16.183,108.1335]
[1673343354991,1.92,16.191,16.183,108.1335]
[1673343355204,1.92,16.193,16.183,108.1335]
[1673343355415,0.96,16.19,16.183,108.1335]
[1673343355625,0.96,16.189,16.183,108.1335]
[1673343355823,0.96,16.188,16.183,108.1335]
[1673343356034,0.96,16.187,16.183,108.1335]
[1673343356238,0.96,16.186,16.183,108.1335]
[1673343357835,0.96,16.185,16.183,108.1335]
[1673343360291,0.96,16.184,16.183,108.1335]
[1673343360509,1.92,16.184,16.178,38.23460375]
[1673343360700,0.96,16.184,16.179,40.0]
[1673343360913,0.96,16.185,16.179,40.0]
[1673343361117,20.0,16.192,16.179,40.0]
[1673343361327,18.92,16.191,16.179,40.0]
[1673343361785,18.92,16.191,16.179,20.0]
[1673343361982,46.02,16.19,16.179,20.0]
[1673343362171,18.92,16.189,16.178,20.0]
[1673343362373,20.0,16.188,16.178,20.0]
[1673343362710,0.06681176,16.178,16.168,1.957]
[1673343362904,0.06681176,16.178,16.169,20.0]
[1673343363642,0.06681176,16.178,16.168,112.4351]
[1673343363844,0.06681176,16.178,16.169,20.0]
[1673343365316,0.06681176,16.178,16.168,110.4781]
[1673343365550,0.06681176,16.178,16.169,20.0]
[1673343365958,20.06681176,16.178,16.169,20.0]
[1673343366155,18.92,16.177,16.169,20.0]
[1673343367439,0.06681176,16.178,16.169,20.0]
[1673343367646,20.0,16.179,16.178,0.03939324]
[1673343367954,20.0,16.179,16.156,20.0]
[1673343368165,46.37,16.178,16.161,110.7086]
[1673343368581,20.0,16.177,16.161,110.7086]
[1673343368923,20.0,16.175,16.161,110.7086]
[1673343369214,20.0,16.173,16.155,127.24028712]
[1673343369429,26.09,16.17,16.156,109.8864]
[1673343369622,20.0,16.169,16.159,20.0]
[1673343369832,1.92,16.168,16.157,20.0]
[1673343370049,1.92,16.168,16.158,18.12915292]
[1673343370266,1.92,16.168,16.158,5.7279658]
[1673343370476,18.92,16.168,16.158,5.7279658]
[1673343371320,65.32,16.168,16.158,5.7279658]
[1673343371847,20.0,16.167,16.158,5.7279658]
[1673343372056,18.92,16.166,16.159,20.0]
[1673343373214,20.0,16.165,16.159,20.0]
[1673343373407,18.92,16.164,16.158,5.7279658]
[1673343373827,20.0,16.162,16.158,5.7279658]
[1673343374045,65.34,16.161,16.158,5.7279658]
[1673343374239,18.92,16.161,16.158,5.7279658]
[1673343375510,20.0,16.16,16.158,5.7279658]
[1673343375732,18.92,16.159,16.158,5.7279658]
[1673343375935,1.92,16.159,16.158,5.7279658]
[1673343376156,20.0,16.162,16.158,5.7279658]
[1673343377202,12.34542578,16.157,16.12,130.73]
[1673343377414,26.09,16.15,16.138,113.9757]
[1673343377728,20.0,16.148,16.138,113.9757]
[1673343378047,17.96,16.147,16.138,113.9757]
[1673343378234,0.96,16.146,16.138,113.9757]
[1673343378445,0.96,16.145,16.138,113.9757]
[1673343378662,0.96,16.144,16.138,113.9757]
[1673343378874,0.96,16.143,16.138,113.9757]
[1673343379090,0.96,16.142,16.138,113.9757]
[1673343379284,0.96,16.141,16.138,113.9757]
[1673343379495,0.96,16.14,16.134,110.1333]
[1673343379727,0.96,16.139,16.134,110.1333]
[1673343379932,0.96,16.14,16.134,110.1333]
[1673343380236,20.0,16.146,16.135,20.0]
[1673343380447,18.92,16.145,16.135,20.0]
[1673343380992,18.92,16.145,16.135,11.38369491]
[1673343381203,18.92,16.145,16.136,20.0]
[1673343381441,20.0,16.148,16.136,20.0]
[1673343381647,20.0,16.148,16.137,11.38369491]
[1673343382041,20.0,16.148,16.138,20.0]
[1673343382687,20.0,16.148,16.136,20.0]
[1673343383013,25.97,16.16,16.14,26.09]
[1673343383215,130.36,16.17,16.141,40.0]
[1673343383430,66.41,16.165,16.141,51.38369491]
[1673343383833,66.41,16.165,16.142,123.36089491]
[1673343384150,66.41,16.165,16.144,20.0]
[1673343384360,66.41,16.165,16.145,37.0]
[1673343384361,20.0,16.165,16.145,37.0]
[1673343384775,20.0,16.165,16.146,20.0]
[1673343384987,20.0,16.165,16.147,20.0]
[1673343384988,2.578e-05,16.157,16.147,20.0]
[1673343385216,2.578e-05,16.157,16.148,20.0]
[1673343385421,2.578e-05,16.157,16.149,20.0]
[1673343386787,2.578e-05,16.157,16.15,20.0]
[1673343390253,2.578e-05,16.157,16.152,20.0]
[1673343391187,2.578e-05,16.157,16.153,20.0]
[1673343391519,2.578e-05,16.157,16.154,20.0]
[1673343391728,2.578e-05,16.157,16.155,113.6074]
[1673343391941,2.578e-05,16.157,16.156,20.0]
[1673343392132,2.578e-05,16.157,16.151,109.3037]
[1673343392555,2.578e-05,16.157,16.152,20.0]
[1673343394658,2.578e-05,16.157,16.151,109.3037]
[1673343398150,2.578e-05,16.157,16.152,20.0]
[1673343400125,2.578e-05,16.157,16.147,20.0]
[1673343400334,2.578e-05,16.157,16.148,20.0]